Cogmind - Beta 16 @@@ ROGUE MODE // 2025.12.31 @ 17:26:59 Player: GiggleBox Result: Destroyed by H-55 Commando with Assault Rifle Performance ------------- Evolutions (1) 500 Regions Visited (5) 1000 Robots Destroyed (62) 310 Value Destroyed (2287) 2287 Prototype IDs (26) 520 Alien Tech Used (0) 0 Bonus (366) 366 TOTAL SCORE: 4983 Bonus ------- Follower Combat Kills 66 Aligned with FarCom 300 Cogmind --------- Core Integrity 0/400 Matter 106/300 Energy 160/160 System Corruption 2% Temperature Cool (0) Movement Core (450) Ox8 Location -9/Exiles Parts ------- > --- POWER (1) -------- Light Nuclear Core > --- PROPULSION (3) --- (None) > --- UTILITY (3) ------ Large Storage Unit > --- WEAPON (2) ------- Mini Grenade Launcher > --- INVENTORY (15) --- Light Ion Engine Light Ion Engine Light Treads Improved Hover Unit Improved Heat Sink Large Matter Pod (150) ECM Suite Core Shielding Light Assault Rifle Grenade Launcher Mining Laser Hammer Peak State ------------ > --- POWER ------------ Reinforced Ion Engine > --- PROPULSION ------- Light Treads Aluminum Leg Carbon-fiber Leg > --- UTILITY ---------- Cooling System Large Storage Unit > --- WEAPON ----------- AWS/Thermal > --- INVENTORY -------- Light Ion Engine Light Ion Engine Light Nuclear Core Improved Hover Unit Improved Heat Sink Large Matter Pod ECM Suite Core Shielding Light Assault Rifle Grenade Launcher Mini Grenade Launcher Mini Grenade Launcher Mining Laser Hammer [Rating: 28] Favorites ----------- Power Light Ion Engine Engine Light Ion Engine Power Core Light Nuclear Core Propulsion Light Treads Treads Light Treads Leg Aluminum Leg Wheel Compact Wheel Hover Unit Backup Propulsion I Utility Large Storage Unit Device Seismic Detector Storage Large Storage Unit Protection Light Armor Plating Weapon Light Assault Rifle Energy Gun AWS/Thermal Ballistic Gun Light Assault Rifle Launcher Mini Grenade Launcher Impact Weapon Hammer Build | -11 -10 -10 -9 -9 -9 ------- Run | Yrd Mat Min Mat Min Exi Slots Evolved 2 | . . . 2 . . Power . | . . . . . . Propulsion 1 | . . . 1 . . Utility 1 | . . . 1 . . Weapon . | . . . . . . Parts Attached 28 | 4 9 1 3 1 10 Power 3 | . 2 . . . 1 Engine 2 | . 1 . . . 1 Core 1 | . 1 . . . . Reactor . | . . . . . . Propulsion 12 | 2 2 . 1 1 6 Treads 6 | 2 1 . . . 3 Leg 3 | . . . . . 3 Wheel 1 | . 1 . . . . Hover 2 | . . . 1 1 . Flight . | . . . . . . Utility 5 | 1 1 1 . . 2 Device 2 | 1 . . . . 1 Storage 1 | . 1 . . . . Processor . | . . . . . . Hackware . | . . . . . . Protection 2 | . . 1 . . 1 Artifact . | . . . . . . Weapon 8 | 1 4 . 2 . 1 Energy Gun 2 | . 1 . . . 1 Energy Cannon . | . . . . . . Ballistic Gun 2 | 1 1 . . . . Ballistic Cannon . | . . . . . . Launcher 3 | . 1 . 2 . . Special Weapon . | . . . . . . Impact Weapon 1 | . 1 . . . . Slashing Weapon . | . . . . . . Piercing Weapon . | . . . . . . Special Melee Weapon . | . . . . . . Unidentified Prototypes . | . . . . . . Parts Lost 17 | . 5 . . 2 10 Power 1 | . . . . . 1 Propulsion 9 | . 2 . . 1 6 Utility 4 | . 1 . . 1 2 Weapon 3 | . 2 . . . 1 Highest Loss Streak 5 | . 4 . . 2 5 To Critical Strikes . | . . . . . . Average Backups 10 | 6 8 10 11 12 12 Power 1 | 1 1 2 2 2 2 Propulsion . | 4 . 1 . . . Utility 4 | . 4 5 5 6 4 Weapon 3 | 1 2 2 3 4 5 Tool/Special . | . . . . . . Unused Backups 17 | 7 . . 1 . 9 Power 5 | 1 . . . . 4 Propulsion 4 | 4 . . . . . Utility 5 | 1 . . . . 4 Weapon 3 | 1 . . 1 . 1 Tool/Special . | . . . . . . Average Slot Usage (%) 81 | . 86 100 88 84 69 Engine 11 | . 12 14 11 11 10 Treads 13 | . 20 14 11 . 4 Wheel 2 | . 1 14 11 9 . Hover 7 | . . . 11 21 16 Device 5 | . 6 . . . 5 Storage 12 | . 14 14 11 11 11 Protection 3 | . . 14 11 9 4 Energy Gun 3 | . 2 . . . 7 Ballistic Gun 6 | . 12 . 4 . . Launcher 8 | . 6 14 8 22 6 Impact Weapon 4 | . 7 14 10 . . Peak Build Rating 28 | 7 10 8 11 12 28 Average Rating 11 | 6 6 8 9 11 20 On Entrance 8 | 6 7 7 8 11 10 Avg Prop Armor Cover (%) 9 | . 11 10 12 4 6 Naked Turns . | . . . . . . Heaviest Build 43 | 11 29 31 31 28 43 Greatest Support 60 | 40 40 16 16 16 60 Greatest Overweight (x) 8 | . 8 1 1 2 8 Average Overweight (x) . | . . 1 1 1 1 Largest Inventory Capacity 15 | 8 15 15 15 15 15 Average Capacity 14 | 8 14 15 15 15 15 Most Carried 15 | 7 11 11 12 12 15 Average Carried 10 | 5 8 10 11 12 12 Final Capacity 15 | 8 15 15 15 15 15 Final Carried 12 | 3 11 11 12 12 12 Class Distribution -------------------- 95% | Mutant 4% | Scavenger-Mutant Dominant Class ---------------- Mutant | -10/Materials Mutant | -10/Mines Mutant | -9/Materials Mutant | -9/Mines Mutant | -9/Exiles Resources | -11 -10 -10 -9 -9 -9 ----------- Run | Yrd Mat Min Mat Min Exi Matter Collected 1040 | 256 345 46 . 90 303 Remotely . | . . . . . . Salvage Created 2142 | 128 771 . 5 40 1198 Parts 110 | 7 32 . . 2 69 Haulers Intercepted 2 | . 2 . . . . Recyclers Shooed . | . . . . . . Parts Field Recycled . | . . . . . . Retrieved Matter . | . . . . . . Parts Self-Destructed . | . . . . . . Prevented . | . . . . . . Parts Restored . | . . . . . . Kills | -11 -10 -10 -9 -9 -9 ------- Run | Yrd Mat Min Mat Min Exi Combat Hostiles Destroyed 49 | . 13 . 1 2 33 Guns 31 | . 8 . . . 23 AOE 18 | . 5 . 1 2 10 Classes Destroyed 13 | 2 6 . 1 . 4 Worker 1 | . 1 . . . . Tunneler 3 | 2 1 . . . . Hauler 2 | . 2 . . . . Recycler 3 | 1 2 . . . . Operator 2 | . 2 . . . . Watcher 2 | . 2 . . . . Swarmer 2 | . 2 . . . . Grunt 22 | . 11 . . 2 9 Brawler 2 | . . . . . 2 Duelist 1 | . . . . . 1 Sentry 1 | . . . 1 . . Hunter 13 | . . . . . 13 Programmer 8 | . . . . . 8 Best Kill Streak 15 | 1 5 . 1 2 15 Combat Bots Only 15 | . 5 . 1 2 15 Max Kills in Single Turn 3 | 1 3 . 1 2 2 Gunslinging . | . . . . . . Exploded 3 | . 3 . 1 2 2 Melee . | . . . . . . Uniques/NPCs Destroyed . | . . . . . . Combat | -11 -10 -10 -9 -9 -9 -------- Run | Yrd Mat Min Mat Min Exi Hostile Shots Fired 233 | . 57 . 8 4 164 Missed 74 | . 10 . 2 . 62 Hits 159 | . 47 . 6 4 102 Projectile 159 | . 47 . 6 4 102 Critical Strikes 4 | . 1 . . . 3 Damage Taken 2418 | . 593 . 89 132 1604 Core 534 | . 128 . . 12 394 Absorbed by Shields . | . . . . . . Core Remaining (%) 74 | 100 . 48 . . . Volleys Fired 80 | 8 52 . 4 2 14 Largest 2 | 2 2 . 2 2 2 Hottest 60 | 40 60 . 60 60 60 Shots Fired 253 | 16 91 . 7 4 135 Gun 211 | 16 85 . 1 . 109 Cannon . | . . . . . . Launcher 42 | . 6 . 6 4 26 Special . | . . . . . . Kinetic 76 | 16 59 . 1 . . Thermal 109 | . . . . . 109 Explosive 42 | . 6 . 6 4 26 Electromagnetic 26 | . 26 . . . . Robot Hit Streak 12 | 4 9 . . 1 12 Robot Miss Streak 4 | 3 3 . 1 1 4 Penetration Max . | . . . . . . Secondary Targets 1 | . 1 . . . . Max Gunslinging Chain 1 | . 1 . . . . Autonomous 110 | . . . . . 110 Shots Hit Robots 167 | 10 61 . . 2 94 Core Hits 112 | 4 45 . 2 4 57 Critical Kills . | . . . . . . Critical Parts Destroyed 1 | . 1 . . . . Critical Strikes 2 | . 2 . . . . Corrupt 1 | . 1 . . . . Smash 1 | . 1 . . . . Melee Attacks 2 | . 2 . . . . Impact 2 | . 2 . . . . Slashing . | . . . . . . Piercing . | . . . . . . Sneak Attacks 2 | . 2 . . . . Combat Hostiles . | . . . . . . Follow-up Attacks . | . . . . . . Damage Inflicted 5049 | 85 1130 . 100 166 3568 Guns 3086 | 85 583 . . . 2418 Cannons . | . . . . . . Explosions 1883 | . 467 . 100 166 1150 Melee 80 | . 80 . . . . Ramming . | . . . . . . Kinetic 367 | 85 282 . . . . Thermal 2483 | . 65 . . . 2418 Explosive 1818 | . 402 . 100 166 1150 Electromagnetic 301 | . 301 . . . . Impact 80 | . 80 . . . . Slashing . | . . . . . . Piercing . | . . . . . . Highest Corruption 2 | . . . . . 2 Average Corruption 1 | . . . . . 1 Corruption Purged . | . . . . . . Corruption Blocked . | . . . . . . Effects 1 | . . . . . 1 Energy Discharges 1 | . . . . . 1 Overload Shots . | . . . . . . Overflow Damage 58 | . 40 . . 18 . Projectiles . | . . . . . . Explosions 18 | . . . . 18 . Melee 40 | . 40 . . . . Knockbacks . | . . . . . . Impact . | . . . . . . Kinetic . | . . . . . . Secondary . | . . . . . . Self-Inflicted Damage 128 | . 49 . . 79 . Shots 4 | . 2 . . 2 . Rammed . | . . . . . . Targets Rammed . | . . . . . . Kicked . | . . . . . . Crushed . | . . . . . . Highest Temperature 174 | . 174 . 18 14 12 Average Temperature 44 | . 58 . 14 12 4 Received Heat Transfer 417 | . 327 . 36 30 24 Siege Activations . | . . . . . . Martial Activations . | . . . . . . Shielding Activations . | . . . . . . Robots Disrupted . | . . . . . . Combat Hostiles . | . . . . . . Robots Corrupted 1 | . 1 . . . . Combat Hostiles . | . . . . . . Parts Fried 3 | . 3 . . . . Impact Corruptions 2 | . 2 . . . . Robots Melted . | . . . . . . Combat Hostiles . | . . . . . . Parts Melted 3 | . . . . . 3 Heat Transferred 3047 | . 50 . . . 2997 Parts Sabotaged . | . . . . . . Parts Stolen . | . . . . . . Parts Stripped . | . . . . . . Power Chain Reactions 1 | . 1 . . . . Alert | -11 -10 -10 -9 -9 -9 ------- Run | Yrd Mat Min Mat Min Exi Maximum Alert Level . | . . . . . . Low Security (%) 100 | 100 100 100 100 100 . Level 1 . | . . . . . . Level 2 . | . . . . . . Level 3 . | . . . . . . Level 4 . | . . . . . . Level 5 . | . . . . . . High Security . | . . . . . . Max Security . | . . . . . . Peak Influence 176 | 5 176 . 37 62 . Initial 14 | . . . . 14 . Average 29 | 1 36 . 3 12 . Influence Increases 1324 | 15 471 . 47 74 717 Destroy 0b10 Robot/C 1020 | . 260 . 20 40 700 Destroy 0b10 Robot/NC 65 | 15 50 . . . . Destroy Leader 78 | . 58 . 10 10 . Allied During Kill 17 | . . . . . 17 Successful Hack 16 | . 16 . . . . Destroy Structure 83 | . 42 . 17 24 . Lose Combat Pursuer 45 | . 45 . . . . Influence Decreases 879 | 15 471 . 10 69 314 Entered New Map 65 | . . . . 23 42 Time Decay 494 | 15 303 . 10 34 132 Lost Part 162 | . 50 . . 12 100 Lost Ally 40 | . . . . . 40 Purge Threat 118 | . 118 . . . . Squads Dispatched 2 | . 2 . . . . Investigation 1 | . 1 . . . . Extermination . | . . . . . . Reinforcement 1 | . 1 . . . . Assault . | . . . . . . Garrison . | . . . . . . Intercept . | . . . . . . Searches Triggered . | . . . . . . Construction Impeded . | . . . . . . Haulers Reinforced . | . . . . . . Active Scanning Responses . | . . . . . . Cargo Convoy Interrupts . | . . . . . . Stealth | -11 -10 -10 -9 -9 -9 --------- Run | Yrd Mat Min Mat Min Exi Distress Signals . | . . . . . . Communications Jammed . | . . . . . . Distress Signals . | . . . . . . Times Spotted 65 | . 21 . 3 2 39 Peak Tracking Total 7 | . 7 . 2 2 4 Tactical Retreats 1 | . 1 . . . . Traps | -11 -10 -10 -9 -9 -9 ------- Run | Yrd Mat Min Mat Min Exi Traps Triggered 3 | . 3 . . . . Indirectly . | . . . . . . Trap Hack Attempts . | . . . . . . Triggered . | . . . . . . Disarmed . | . . . . . . Reprogrammed . | . . . . . . Reused . | . . . . . . Traps Extracted . | . . . . . . Installed . | . . . . . . Triggered . | . . . . . . Machines | -11 -10 -10 -9 -9 -9 ---------- Run | Yrd Mat Min Mat Min Exi Machines Disabled 5 | . . . . . 5 Max in Single Turn 1 | . . . . . 1 Machines Repaired . | . . . . . . Machines Dismantled . | . . . . . . Machines Sabotaged . | . . . . . . Overloaded Fab Kills . | . . . . . . Hacking | -11 -10 -10 -9 -9 -9 --------- Run | Yrd Mat Min Mat Min Exi Machines Accessed 10 | . 8 . 1 . 1 Terminals 7 | . 6 . 1 . . Fabricators . | . . . . . . Repair Stations 1 | . 1 . . . . Recycling Units 1 | . 1 . . . . Scanalyzers . | . . . . . . Garrison Access . | . . . . . . Total Hacks 29 | . 25 . 3 . 1 Successful 15 | . 13 . 1 . 1 Failed 14 | . 12 . 2 . . Catastrophic 1 | . 1 . . . . Database Lockouts . | . . . . . . Manual 21 | . 17 . 3 . 1 Terminals 25 | . 22 . 3 . . Fabricators . | . . . . . . Repair Stations 1 | . 1 . . . . Recycling Units 2 | . 2 . . . . Scanalyzers . | . . . . . . Garrison Access . | . . . . . . Terminal Hacks 6 | . 5 . . . 1 Robot Schematic 1 | . 1 . . . . Robot Analysis 1 | . 1 . . . . Prototype ID Bank 1 | . 1 . . . . Unreport Threat 1 | . 1 . . . . Locate Traps 1 | . 1 . . . . Proto ID Catalog 1 | . . . . . 1 Fabricator Hacks . | . . . . . . Repair Station Hacks 1 | . 1 . . . . Refit 1 | . 1 . . . . Recycling Unit Hacks 1 | . 1 . . . . Retrieve Components 1 | . 1 . . . . Scanalyzer . | . . . . . . Garrison Access Hacks . | . . . . . . Unauthorized Hacks 7 | . 6 . 1 . . Terminals 7 | . 6 . 1 . . Botnet 2 | . 1 . 1 . . Skim 5 | . 5 . . . . Fabricators . | . . . . . . Repair Stations . | . . . . . . Recycling Units . | . . . . . . Scanalyzers . | . . . . . . Garrison Access . | . . . . . . Data Cores Recovered . | . . . . . . Used . | . . . . . . Hacking Detections 9 | . 8 . 1 . . Full Trace Events . | . . . . . . Feedback Events . | . . . . . . Feedback Blocked . | . . . . . . Robot Schematics Acquired 1 | . 1 . . . . Robots Built . | . . . . . . Authchips . | . . . . . . Time . | . . . . . . Total Robot Build Rating . | . . . . . . Part Schematics Acquired . | . . . . . . Parts Built . | . . . . . . Authchips . | . . . . . . Time . | . . . . . . Total Part Build Rating . | . . . . . . Part Studies Acquired . | . . . . . . Parts Repaired . | . . . . . . Time . | . . . . . . Parts Recycled . | . . . . . . Recycled Matter . | . . . . . . Retrieved Matter . | . . . . . . Retrieved Components 4 | . 4 . . . . Parts Scanalyzed . | . . . . . . Part Schematics Acquired . | . . . . . . Parts Damaged . | . . . . . . Bothacking | -11 -10 -10 -9 -9 -9 ------------ Run | Yrd Mat Min Mat Min Exi Used RIF Installer . | . . . . . . Robots Hacked . | . . . . . . Non-combat . | . . . . . . Combat . | . . . . . . Robot Hacks Applied . | . . . . . . Relay Couplers Released . | . . . . . . Fabnet Peak Effective % . | . . . . . . Robots Rewired . | . . . . . . Allies Hacked . | . . . . . . Hacks Repelled . | . . . . . . Allies | -11 -10 -10 -9 -9 -9 -------- Run | Yrd Mat Min Mat Min Exi Total Allies 3 | . . . . 3 . Largest Group 3 | . . . . 3 3 Highest-Rated Group 40 | . . . . 40 40 Highest-Rated Ally 16 | . . . . 16 16 Total Orders . | . . . . . . Ally Attacks 21 | . . . . . 21 Total Damage 182 | . . . . . 182 Kills 3 | . . . . . 3 Allies Corrupted . | . . . . . . Allies Melted . | . . . . . . Intel | -11 -10 -10 -9 -9 -9 ------- Run | Yrd Mat Min Mat Min Exi Active Infowar (turns) 696 | 35 661 . . . . Seismic 696 | 35 661 . . . . Robot Analysis Total 1 | . 1 . . . . Derelict Logs Recovered . | . . . . . . Drone Launches . | . . . . . . Drone Recoveries . | . . . . . . Exploration | -11 -10 -10 -9 -9 -9 ------------- Run | Yrd Mat Min Mat Min Exi Turns Passed 2717 | 95 1409 44 109 231 829 Spaces Moved 1322 | 32 642 37 78 115 418 Core 2 | . 1 . . . 1 Treads 651 | 16 563 . . . 72 Legs 35 | 16 . . . . 19 Wheels 197 | . 78 37 78 4 . Hover 437 | . . . . 111 326 Flight . | . . . . . . Fastest Speed 115 | 120 115 115 115 115 120 Average Speed 176 | 140 186 115 115 189 177 Slowest Speed 450 | 160 450 115 115 211 450 Overloaded Moves . | . . . . . . Propulsion Burnouts . | . . . . . . Robots Hopped . | . . . . . . Potential Cave-ins . | . . . . . . Cave-ins Triggered . | . . . . . . Exploration Rate (%) 36 | 3 94 10 13 27 70 Regions Visited 5 Branch Regions 3 Pre-discovered Areas 2 | . 2 . . . . Known Exits Taken 1 | . . 1 . . . Unknown Exits Taken 4 | 1 1 . 1 1 . Scrap Searched 2 | . . 1 . 1 . Spaces Dug 8 | . 8 . . . . Terrain Destroyed 153 | . 52 . 33 26 42 Melee . | . . . . . . Projectile 5 | . . . . . 5 AOE 148 | . 52 . 33 26 37 Terrain Rammed . | . . . . . . Walls Destroyed . | . . . . . . Machines Disabled . | . . . . . . Actions | -11 -10 -10 -9 -9 -9 --------- Run | Yrd Mat Min Mat Min Exi Total 1569 | 70 768 38 89 124 480 Wait 93 | 22 41 . . 7 23 Move 1317 | 31 641 36 77 114 418 Hop . | . . . . . . Pick Up 17 | 1 9 1 3 . 3 Fast Attach 12 | 1 6 . . . 5 Attach 11 | . 3 1 1 . 6 Detach 5 | . 2 . . . 3 Swap 21 | 3 10 . 3 1 4 Drop 11 | 4 2 . 1 . 4 Fire 80 | 8 52 . 4 2 14 Melee 2 | . 2 . . . . Ram . | . . . . . . Kick . | . . . . . . Crush . | . . . . . . Escape Stasis . | . . . . . . Rewire . | . . . . . . Trap . | . . . . . . Miscellaneous . | . . . . . . Route ------- -11/Scrapyard -10/Materials (discovered 4 exits: *Mat x3 / [*Min]) -10/Mines (discovered 2 exits: *Mat x2) -9/Materials -9/Mines -9/Exiles (discovered 2 exits: [*Min x2]) History --------- Turn | Location | Event 19 | -11/Scrapyard | Discovered new exit (range 3) 96 | -11/Scrapyard | Entered Materials 313 | -10/Materials | Build established: Mutant 477 | -10/Materials | Discovered new exit (range 11) 733 | -10/Materials | Discovered new exit (range 5) 761 | -10/Materials | Core integrity fell below 50% 788 | -10/Materials | Lost 4 parts (2n1u1w) 874 | -10/Materials | Discovered new exit (range 15) 987 | -10/Materials | Discovered new exit (range 15) 1067 | -10/Materials | Learned location of Mines (-8) 1149 | -10/Materials | Learned Storage emergency access door positions 1282 | -10/Materials | Loaded intel: 1 repair station location 1333 | -10/Materials | Learned location of Storage (-9) 1396 | -10/Materials | Learned Storage trap positions 1469 | -10/Materials | Learned location of 2 exits from Mines 1505 | -10/Materials | Entered Mines 1506 | -10/Mines | Identified exit to Materials 1527 | -10/Mines | Received a Rocket Launcher from a helpful Derelict 1549 | -10/Mines | Entered Materials 1549 | -9/Materials | Evolved 2 slots: Propulsion x1, Utility x1 1639 | -9/Materials | Discovered new exit (range 7) 1658 | -9/Materials | Entered Mines 1855 | -9/Mines | Assisted by bots powering up and referring to "LRC-V3" 1877 | -9/Mines | Deemed a non-threat by the Exiles lab entrance 1877 | -9/Mines | Discovered new exit (range 5) 1889 | -9/Mines | Entered Exiles 1889 | -9/Exiles | Accompanied by 3 allies 1907 | -9/Exiles | Discovered new exit (range 15) 1937 | -9/Exiles | Met 8R-AWN 1974 | -9/Exiles | Met EX-HEX 2014 | -9/Exiles | Met EX-BIN 2031 | -9/Exiles | Aligned with FarCom system 2032 | -9/Exiles | Given EX-Vault access code 2063 | -9/Exiles | Opened EX-Vault 2075 | -9/Exiles | Found AWS/Thermal 2116 | -9/Exiles | Warned to stay clear of 0b10 Research branches 2144 | -9/Exiles | Exiles lab attacked by MAIN.C 2322 | -9/Exiles | Discovered new exit (range 11) 2468 | -9/Exiles | Lost 4 allies 2479 | -9/Exiles | Destroyed 12 combat bots 2639 | -9/Exiles | AWS/Thermal suddenly broke down 2657 | -9/Exiles | Core integrity fell below 50% 2674 | -9/Exiles | Lost 4 parts (2n2u) 2711 | -9/Exiles | Core integrity fell below 20% 2718 | -9/Exiles | Destroyed by H-55 Commando with Assault Rifle Last Messages --------------- 02693_ Slug penetrates Earth. 02695_ Penetrated by Slug. 02699_ Aluminum Leg destroyed. 02700_ Penetrated by Slug. 02700_ Rnf. Ion Engine destroyed. 02701_ Penetrated by Slug. 02703_ Slug penetrates Earth. 02704_ Penetrated by Slug. 02704_ H-55 Commando destroyed. 02704_ Machine disabled. 02704_ H-55 Commando destroyed. 02705_ The unstable cave ceiling collapses. 02705_ Penetrated by Slug. 02707_ Carbon-fiber Leg destroyed. 02710_ Penetrated by Slug. 02712_ H-55 Commando destroyed. 02712_ Penetrated by Slug. 02712_ Mni. Grenade Launcher destroyed. 02717_ G-34 Mercenary destroyed. 02718_ Penetrated by Slug. Map ----- +----------------------------------------------------+ | ???????????????#" """#????????????????? | | ???????????????#" """#????????????????? | | ???????????????#" """#????????????????? | | ??? ""?????????## """"????????????????? | | ??" ??????????# """#????????????????? | | ??" ??????????#" "X" """"????????????????? | | ??" ??????????#" """ #????????????????? | | ? ""?????????#" """""""""#????????????????? | | ??" "?????????##" ###########????????????????? | | ??# #????????##"" #??????????????????????????? | | ### ###?######"" #####??????????????????????? | | # # #"###""" """ # ##?????????????????????? | | """""" "" ##########????????????? | | " """ """""""""##?????????? | | [ " """ """"##????????? | | % "" " #????????? | | [ = ! * " """#????????? | | %= *%== " "#????????? | | ! ![=!=! " "##???????? | | = =%!% ""###?????? | | [% [= % """#?????? | | = % %! "# # "#????## | | =[%[=*#### [ ##???# | | =%![=### [% ##?## | | =[=!%##????### * [%= ### | | !=%%"##??????##### @ h | | %[*!!######???### g | | [%==%=# ####"" | | !|!%[%[[[[% #"" | | %=%%%%%*% %= [ #### | | [*=%%= ! = *%= ##??? | | ! /% !%[ = ##???? | | *% """ ""#????? | | "## *; "" " " ""#" "##????? | | ""#### ######""" """##"""""""##?????? | | """"##??# #????###""""#?#########??????? | | """#??## ####???####??????????????????? | | ""##??#! "!#?????????????????????????? | | ""##???#" !#?????????????????????????? | | ##????#" "#?????????????????????????? | | "" ##?????#!!""!"#?????????????????????????? | | #??????########?????????????????????????? | | #### ##???????????????????????????????????????? | | ???## #????????????????????????????????????????? | | ????? #????????????????????????????????????????? | | ?????? ?????????????????????????????????????????? | | ?????????????????????????????????????????????????? | | ?????????????????????????????????????????????????? | | ?????????????????????????????????????????????????? | | ?????????????????????????????????????????????????? | +----------------------------------------------------+ Best States ------------- Heat Dissipation 50 Energy Generation 14 Energy Capacity 265 Matter Stores 300 Matter Capacity 300 Sight Range 16 Terrain Scan Density 10 Armor Coverage 150 Evasion (%) 50 Recoil Reduction 3 Item Schematics ----------------- None Robot Schematics ------------------ M-13 Machinist | -10/Materials | Hacked Fabricated ------------ Nothing Repaired ---------- Nothing Studied --------- None Alien Tech Used ----------------- None Achievements -------------- Fitting Room Challenges ------------ None Game ------ Seed MeleeGhostCorpse Manual? 0 Play Time 00:18:03 Cumulative 265.4 hours Start 2025.12.31 @ 17:11:11 End 2025.12.31 @ 17:26:59 Sessions 1 Manual Loads 0 Difficulty Rogue Special Mode None Game No. 199 Rogue 199 Adventurer 0 Explorer 0 Win Type - Total 9 Types 5/1/1/2/0/0/0/0/0/0 Lore% 77 Gallery% 71 Achievement% 58 Wizard Run 0 Options --------- Layout 0 ASCII 0 Keyboard 1 Movement Numpad Keybinds 0 Fullscreen 1 Font 24/Terminus Map View 76x50 Zoom Use 0% Tactical HUD 1 Map Filters NONE Filters NONE Steam 1 RUN: c3bf759a-0aef-4798-8378-767e38d0da36